bitfinex-derivatives/quotes_ETHF0:USTF0_20241023
["timestamp","ask_amount","ask_price","bid_price","bid_amount"]
[1729722967263,0.80635,2509.3,2509.2,3.73141802]
[1729722967462,0.80635,2509.3,2509.2,3.60667]
[1729722967759,0.80635,2509.3,2509.2,3.73141803]
[1729722968853,0.80635,2509.3,2509.2,3.33254803]
[1729722969049,6.68221942,2509.3,2509.2,3.33254803]
[1729722969244,6.68221942,2509.3,2509.2,3.2078]
[1729722969852,0.39887,2509.2,2509.1,0.39888]
[1729722970050,0.81667,2509.2,2509.1,0.52363364]
[1729722970255,0.81667,2509.2,2509.1,0.39888]
[1729722970455,0.39888,2509.1,2509.0,3.31009]
[1729722970760,2.2892,2509.2,2509.1,0.39888]
[1729722970955,2.2892,2509.2,2509.1,0.52363499]
[1729722971355,2.2892,2509.2,2509.1,0.39888]
[1729722973361,2.2892,2509.2,2509.1,1.83888]
[1729722974855,3.60662,2509.6,2509.4,0.39882]
[1729722975058,1.44,2509.5,2509.4,0.39882]
[1729722975255,5.96091895,2509.5,2509.4,0.39882]
[1729722975651,4.52091895,2509.5,2509.4,0.39882]
[1729722975856,5.96091895,2509.5,2509.4,0.39882]
[1729722976173,0.39874,2510.0,2509.9,0.39875]
[1729722976362,1.8426,2510.1,2509.9,1.44]
[1729722976666,6.28300348,2510.0,2509.9,0.39876]
[1729722977062,5.88426348,2510.0,2509.7,3.6223]
[1729722977268,1.83877,2509.8,2509.7,1.011]
[1729722977567,1.83878,2509.8,2509.6,0.3988]
[1729722977759,0.8303,2509.7,2509.6,0.3988]
[1729722979766,0.3988,2509.6,2509.5,1.8585]
[1729722980071,7.1974312,2509.7,2509.5,1.44]
[1729722980252,7.1974312,2509.7,2509.6,0.3988]
[1729722981362,5.7574312,2509.7,2509.6,0.3988]
[1729722982561,4.5152312,2509.7,2509.6,1.8388]
[1729722982753,0.39878,2509.8,2509.7,0.39879]
[1729722982956,0.39878,2509.8,2509.5,0.8283]
[1729722982957,1.44,2509.8,2509.5,2.2683]
[1729722983158,1.44,2509.6,2509.5,0.8283]
[1729722983360,1.8388,2509.6,2509.5,0.4294]
[1729722983557,1.8388,2509.6,2509.4,6.05762]
[1729722983763,0.8391,2509.5,2509.4,6.05762]
[1729722983966,0.8391,2509.5,2509.4,2.84982]
[1729722985661,0.8391,2509.5,2509.4,1.44]
[1729722985863,0.39884,2509.4,2509.3,0.4216]
[1729722986064,1.83884,2509.4,2509.3,0.82045]
[1729722988961,1.83884,2509.4,2509.3,0.94519086]
[1729722990265,0.39884,2509.4,2509.3,2.38519086]
[1729722990667,0.39884,2509.4,2509.3,2.26045]
[1729722990870,0.39884,2509.4,2509.3,2.38519068]
[1729722991963,1.83884,2509.4,2509.3,0.12474068]
[1729722992169,1.83884,2509.4,2509.2,5.45686]
[1729722994366,0.39885,2509.3,2509.2,5.058]
[1729722994572,1.83884,2509.4,2509.2,5.58160408]
[1729722994777,1.83884,2509.4,2509.2,5.45686]
[1729722996680,1.83884,2509.4,2509.2,2.24906]
[1729722996874,0.39885,2509.3,2509.2,2.24906]
[1729722997774,1.83885,2509.4,2509.2,2.24906]
[1729722998876,1.44,2509.4,2509.2,2.24906]
[1729722999073,0.39885,2509.3,2509.2,2.24906]
[1729723000177,1.44,2509.4,2509.2,1.8502]
[1729723000374,1.83885,2509.4,2509.2,2.24906]
[1729723000677,0.39885,2509.3,2509.2,2.24906]
[1729723001182,1.83885,2509.4,2509.2,2.24906]
[1729723005592,0.39882,2509.5,2509.4,0.39883]
[1729723005786,2.69059,2509.7,2509.4,1.44]
[1729723006086,7.2808299,2509.7,2509.6,0.3988]
[1729723007387,7.2808399,2509.7,2509.5,0.39882]
[1729723007685,1.8388,2509.6,2509.5,0.39882]
[1729723009288,5.93913368,2509.6,2509.3,5.0816]
[1729723009589,6.33793368,2509.6,2509.5,0.39882]
[1729723011787,6.33793368,2509.6,2509.4,0.39882]
[1729723011992,1.44,2509.5,2509.4,0.39882]
[1729723012689,0.39885,2509.4,2509.2,4.01686]
[1729723012989,1.83884,2509.4,2509.3,0.12473853]
[1729723013184,2.25464,2509.4,2509.3,0.12473853]
[1729723015594,0.81464,2509.4,2509.3,0.12473853]
[1729723015896,0.81464,2509.4,2509.3,0.52358853]
[1729723016483,0.81464,2509.4,2509.3,0.12473853]
[1729723016690,1.44,2509.5,2509.3,1.56473853]
[1729723016890,1.44,2509.5,2509.4,0.39884]
[1729723017091,1.44,2509.5,2509.4,0.79644]
[1729723017391,1.83881,2509.6,2509.5,0.39882]
[1729723017893,6.0151414,2509.6,2509.5,0.39882]
[1729723018591,0.39878,2509.8,2509.7,0.39878]
[1729723018797,0.39878,2509.8,2509.6,0.39879]
[1729723018798,1.83878,2509.8,2509.6,0.39879]
[1729723018991,1.44,2509.7,2509.6,0.39879]
[1729723019694,0.39878,2509.8,2509.5,3.2078]
[1729723019992,1.8773,2509.9,2509.8,0.39877]
[1729723020384,2.27606,2509.9,2509.6,2.413]
[1729723020692,1.44,2509.8,2509.7,0.39878]
[1729723020892,1.83877,2509.8,2509.7,0.39878]
[1729723021083,1.44,2509.8,2509.7,0.39878]
[1729723021289,1.83877,2509.8,2509.7,0.39878]
[1729723021489,1.44,2509.8,2509.6,1.3718]
[1729723021683,1.44,2509.7,2509.4,2.23643]
[1729723021884,0.3988,2509.7,2509.6,0.973]
[1729723022392,0.3988,2509.6,2509.5,1.37181]
[1729723022588,1.8388,2509.6,2509.5,1.49654029]
[1729723023187,1.8388,2509.6,2509.5,1.37181]
[1729723023390,1.8388,2509.6,2509.5,1.49653914]
[1729723024796,1.8388,2509.6,2509.5,1.37181]
[1729723025391,1.8388,2509.6,2509.5,1.49653997]
[1729723025602,0.3988,2509.6,2509.5,1.49653997]
[1729723025998,0.3988,2509.6,2509.5,1.37181]
[1729723026896,0.3988,2509.6,2509.5,0.12472951]
[1729723027098,1.8388,2509.6,2509.5,0.12472951]
[1729723027409,0.39882,2509.5,2509.4,1.37183]
[1729723027797,0.39882,2509.5,2509.4,1.49656497]
[1729723028498,1.44,2509.6,2509.5,0.39881]
[1729723028499,1.83881,2509.6,2509.5,0.39881]
[1729723028799,1.44,2509.6,2509.5,0.52354497]
[1729723030094,1.842,2509.6,2509.5,0.52354497]
[1729723030495,1.842,2509.6,2509.5,0.95244497]
[1729723031604,2.2408,2509.6,2509.5,0.95245497]
[1729723031902,2.2408,2509.6,2509.5,0.95245116]
[1729723031903,1.842,2509.6,2509.5,0.95245116]
[1729723032803,1.842,2509.6,2509.5,0.9524505]
[1729723033797,1.842,2509.6,2509.5,0.82772]
[1729723034906,2.2408,2509.6,2509.5,0.82772]
[1729723035901,1.842,2509.6,2509.5,0.82772]
[1729723036697,0.3988,2509.7,2509.6,0.3988]
[1729723037914,0.39879,2509.7,2509.5,2.26771]
[1729723038110,0.39879,2509.7,2509.5,1.8689]
[1729723038315,1.8388,2509.6,2509.5,0.4289]
[1729723038513,6.00576269,2509.6,2509.4,1.005]
[1729723038720,2.69362,2509.5,2509.4,1.40383]
[1729723039016,7.22188513,2509.5,2509.4,1.40383]
[1729723039205,4.96256513,2509.5,2509.4,1.40383]
[1729723039516,2.27309,2509.7,2509.6,0.3988]
[1729723040409,0.83309,2509.7,2509.6,0.3988]
[1729723040913,0.83309,2509.7,2509.6,0.5235284]
[1729723041102,2.27309,2509.7,2509.6,0.5235284]
[1729723042716,2.27309,2509.7,2509.6,0.1247284]
[1729723042905,1.8743,2509.7,2509.4,1.005]
[1729723043106,1.83881,2509.6,2509.5,0.1247342]
[1729723043309,1.83881,2509.6,2509.5,0.5235542]
[1729723043507,1.83881,2509.6,2509.5,0.52355314]
[1729723043717,1.83881,2509.6,2509.5,0.39882]
[1729723043916,1.44,2509.6,2509.5,0.52355242]
[1729723044313,1.8743,2509.7,2509.6,0.3988]
[1729723044518,2.27309,2509.7,2509.6,0.12473242]
[1729723045712,0.4343,2509.7,2509.6,3.73133242]
[1729723045911,0.4343,2509.7,2509.6,4.54713242]
[1729723047115,0.4335,2509.8,2509.7,0.39879]
[1729723047519,2.25523,2510.1,2510.0,0.39874]
[1729723047818,2.25523,2510.1,2509.9,1.83874]
[1729723048020,1.8565,2510.1,2509.9,1.44]
[1729723048223,1.8565,2510.1,2510.0,0.81254]
[1729723048716,1.8565,2510.1,2510.0,2.25254]
[1729723048717,0.4165,2510.1,2510.0,2.25254]
[1729723049030,0.4237,2510.3,2510.2,0.39871]
[1729723049324,1.8637,2510.3,2510.2,0.39871]
[1729723051716,5.46204,2510.7,2510.5,0.39865]
[1729723052026,5.8802,2510.7,2510.6,1.83864]
[1729723052420,6.27883,2510.7,2510.6,1.44]
[1729723052615,5.8802,2510.7,2510.6,1.44]
[1729723053019,5.8802,2510.7,2510.6,1.83864]
[1729723053221,6.27883,2510.7,2510.6,1.44]
[1729723053929,3.07103,2510.7,2510.6,1.44]
[1729723056625,3.07103,2510.7,2510.5,2.64175]
[1729723058120,2.6724,2510.7,2510.6,3.2078]
[1729723058320,0.8168,2510.7,2510.6,5.04644]
[1729723058727,0.8168,2510.7,2510.6,4.6478]
[1729723059124,2.2568,2510.7,2510.6,4.6478]
[1729723059425,0.8168,2510.7,2510.6,4.6478]
[1729723059630,0.8168,2510.7,2510.6,3.2078]
[1729723059631,2.65543,2510.7,2510.6,3.2078]
[1729723059928,2.2568,2510.7,2510.6,3.2078]
[1729723060826,2.2568,2510.7,2510.5,2.2431]
[1729723061032,2.2568,2510.7,2510.6,3.2078]
[1729723061033,2.65543,2510.7,2510.6,3.2078]
[1729723062450,0.39866,2510.5,2510.4,1.004]
[1729723062647,1.83866,2510.5,2510.4,1.004]
[1729723065023,1.44,2510.5,2510.4,2.444]
[1729723065230,1.44,2510.5,2510.4,2.84267]
[1729723065734,0.4218,2510.6,2510.4,2.444]
[1729723065931,0.8168,2510.7,2510.6,0.39864]
[1729723066327,2.2568,2510.7,2510.6,0.39864]
[1729723066833,2.65543,2510.7,2510.5,3.60645]
[1729723067134,1.44,2510.6,2510.5,3.60645]
[1729723069335,2.2568,2510.7,2510.5,3.60645]
[1729723069625,2.2568,2510.7,2510.5,5.04645]
[1729723069825,2.2568,2510.7,2510.5,4.6478]
[1729723070028,2.65543,2510.7,2510.5,5.04645]
[1729723070623,2.65543,2510.7,2510.5,1.83865]
[1729723073930,2.2568,2510.7,2510.5,1.44]
[1729723074129,0.39864,2510.6,2510.5,1.44]
[1729723074326,2.65544,2510.7,2510.5,1.83866]
[1729723074524,0.39864,2510.6,2510.5,1.83866]
[1729723074737,2.65544,2510.7,2510.5,1.83866]
[1729723074944,2.2568,2510.7,2510.6,0.39864]
[1729723075333,2.65543,2510.7,2510.5,1.83865]
[1729723076535,2.2568,2510.7,2510.5,1.44]
[1729723076834,2.65543,2510.7,2510.5,1.83865]
[1729723077237,2.65543,2510.7,2510.6,0.39864]
[1729723077838,2.65543,2510.7,2510.5,1.83865]
[1729723078339,2.65543,2510.7,2510.6,0.39864]
[1729723080033,0.4035,2510.7,2510.6,1.83864]
[1729723080241,0.4074,2510.8,2510.6,1.84]
[1729723080439,0.4074,2510.8,2510.7,0.39863]
[1729723080734,0.4074,2510.8,2510.7,1.83863]
[1729723081037,2.25719,2511.0,2510.8,0.39861]
[1729723081239,2.66459,2511.0,2510.8,2.27491]
[1729723081537,4.40004426,2510.9,2510.8,2.27491]
[1729723081940,4.79864426,2510.9,2510.8,2.27491]
[1729723082135,6.23864426,2510.9,2510.8,0.83491]
[1729723082335,5.84004426,2510.9,2510.8,0.83491]
[1729723082530,4.40004426,2510.9,2510.8,2.27491]
[1729723082738,0.4381,2511.2,2510.9,0.3986]
[1729723082941,0.8415,2511.3,2511.2,0.39855]
[1729723083237,0.8415,2511.3,2511.2,1.83855]
[1729723084740,0.3989,2511.6,2511.2,1.44]
[1729723084741,1.44,2511.5,2511.2,1.44]
[1729723084935,0.8386,2511.5,2511.4,0.39852]
[1729723085131,5.82983762,2511.5,2511.3,2.23782]
[1729723085441,5.82983762,2511.5,2511.4,0.39852]
[1729723085442,5.43133762,2511.5,2511.4,0.39852]
[1729723085843,6.87133762,2511.5,2511.4,0.39852]
[1729723087360,6.87133762,2511.5,2511.3,1.8393]
[1729723087552,6.87133762,2511.5,2511.3,0.3993]
[1729723087553,1.83852,2511.4,2511.3,0.3993]
[1729723087844,0.39854,2511.3,2511.1,1.39056]
[1729723088141,0.39857,2511.1,2511.0,6.0473]
[1729723088539,1.23537,2511.1,2511.0,6.0473]
[1729723088738,1.23537,2511.1,2511.0,6.44588]
[1729723091542,1.23537,2511.1,2511.0,5.45388]
[1729723091842,1.23537,2511.1,2511.0,6.44588]
[1729723092240,1.23537,2511.1,2511.0,3.23808]
[1729723093340,3.2078,2511.6,2511.0,6.8219]
[1729723093556,3.2078,2511.6,2511.4,1.83852]
[1729723093557,0.8242,2511.5,2511.4,1.83852]
[1729723093844,0.8242,2511.5,2511.3,4.6478]
[1729723093845,0.39852,2511.4,2511.3,4.6478]
[1729723094045,0.99634,2511.3,2510.7,3.2078]
[1729723094238,5.8505,2511.4,2510.9,1.44]
[1729723094239,1.44,2511.1,2510.9,1.44]
[1729723094434,6.65633772,2511.2,2511.0,1.83857]
[1729723094645,0.39857,2511.1,2511.0,1.83857]
[1729723094841,0.39857,2511.1,2511.0,1.44]
[1729723095041,4.78350772,2511.1,2511.0,1.44]
[1729723095448,5.82493772,2511.1,2510.8,2.8696]
[1729723095643,0.39861,2510.9,2510.7,4.1998]
[1729723095942,1.8689,2511.0,2510.7,4.1998]
[1729723096141,1.8614,2511.1,2510.9,1.44]
[1729723096444,0.3986,2510.9,2510.7,5.6398]
[1729723096843,0.83691,2510.9,2510.7,5.6398]
[1729723097148,0.39861,2510.8,2510.7,5.6398]
[1729723098045,0.39861,2510.8,2510.7,4.6478]
[1729723098243,1.8489,2510.8,2510.6,0.998]
[1729723098436,2.26363,2510.7,2510.6,0.998]
[1729723098747,0.82363,2510.7,2510.6,2.438]
[1729723106857,0.425,2510.7,2510.6,2.438]
[1729723107258,0.82359,2510.7,2510.6,2.438]
[1729723108066,0.82359,2510.7,2510.6,5.6458]
[1729723114773,0.82359,2510.7,2510.6,6.0444]
[1729723115456,0.425,2510.7,2510.6,6.0444]
[1729723115759,0.82359,2510.7,2510.6,6.0444]
[1729723115960,0.82359,2510.7,2510.6,5.6458]
[1729723116660,0.82359,2510.7,2510.6,6.0444]
[1729723117373,0.82359,2510.7,2510.6,5.6458]
[1729723117566,0.82359,2510.7,2510.6,6.0444]
[1729723118365,0.39859,2510.7,2510.6,6.16906441]
[1729723118564,0.4383,2510.9,2510.8,0.39857]
[1729723118757,0.4383,2510.9,2510.8,1.83857]
[1729723118958,0.4274,2511.2,2510.8,1.44]
[1729723119161,0.4274,2511.2,2511.0,1.83853]
[1729723119162,0.39853,2511.1,2511.0,1.83853]
[1729723119358,2.2772,2511.2,2511.0,1.44]
[1729723119661,2.67571,2511.2,2511.0,1.8399]
[1729723119864,2.67571,2511.2,2511.0,2.23843]
[1729723120567,2.67571,2511.2,2511.0,4.00623]
[1729723120773,2.67571,2511.2,2511.0,5.44623]
[1729723121462,2.67571,2511.2,2511.1,0.39853]
[1729723122169,2.2772,2511.2,2511.1,0.39853]
[1729723122366,0.81029,2511.4,2511.2,0.3985]
[1729723122572,2.25029,2511.4,2511.3,4.03489]
[1729723123089,2.25029,2511.4,2511.3,3.6364]
[1729723124498,2.25029,2511.4,2511.3,3.2078]
[1729723126462,6.69939101,2511.4,2511.3,3.2078]
[1729723127564,0.39851,2511.2,2511.1,0.998]
[1729723127869,0.39853,2511.1,2511.0,5.6178]
[1729723128070,0.39853,2511.1,2511.0,4.1778]
[1729723128370,1.83853,2511.1,2511.0,3.2078]
[1729723128569,9.95324325,2511.1,2510.8,0.4281]
[1729723128768,1.83856,2510.9,2510.8,0.97]
[1729723128973,0.39857,2510.8,2510.7,3.6114]
[1729723129173,1.83857,2510.8,2510.7,3.6114]
[1729723129563,0.39857,2510.8,2510.7,3.6114]
[1729723132461,0.39857,2510.8,2510.7,4.00999]
[1729723132875,0.39857,2510.8,2510.7,3.6114]
[1729723133068,1.83857,2510.8,2510.7,3.6114]
[1729723133268,2.27217,2510.8,2510.7,3.6114]
[1729723133669,2.27217,2510.8,2510.7,4.00999]
[1729723133976,0.83217,2510.8,2510.7,4.00999]
[1729723134564,0.83217,2510.8,2510.7,5.0514]
[1729723135168,0.83217,2510.8,2510.7,5.44999]
[1729723135965,0.83217,2510.8,2510.7,5.0514]
[1729723136367,0.83217,2510.8,2510.7,5.44999]
[1729723138272,0.83217,2510.8,2510.7,2.24219]
[1729723138472,0.83217,2510.8,2510.7,5.44999]
[1729723138664,0.83217,2510.8,2510.7,5.0514]
[1729723138868,2.27217,2510.8,2510.7,3.2078]
[1729723139772,2.27217,2510.8,2510.7,3.60639]
[1729723140173,1.83857,2510.8,2510.7,3.2078]
[1729723142477,1.83857,2510.8,2510.7,3.60639]
[1729723142882,1.83857,2510.8,2510.7,3.2078]
[1729723143387,1.83857,2510.8,2510.7,3.60639]
[1729723143773,1.83857,2510.8,2510.7,4.04459]
[1729723144480,1.83857,2510.8,2510.7,5.48459]
[1729723144876,1.83857,2510.8,2510.7,5.086]
[1729723145678,1.83857,2510.8,2510.7,5.48459]
[1729723146182,0.79597,2510.9,2510.8,0.39857]
[1729723146479,0.79597,2510.9,2510.7,5.48458]
[1729723146480,4.27422035,2510.8,2510.7,5.48458]
[1729723146880,0.79597,2510.9,2510.7,5.48458]
[1729723147277,4.22915874,2510.8,2510.7,5.48458]
[1729723148280,4.62772874,2510.8,2510.7,5.48458]
[1729723154395,4.62772874,2510.8,2510.7,2.27678]
[1729723154692,4.62772874,2510.8,2510.7,5.48459]
[1729723155593,4.22915874,2510.8,2510.7,5.48459]
[1729723155989,4.62772874,2510.8,2510.7,5.48459]
[1729723156690,4.22915874,2510.8,2510.7,5.48459]
[1729723157390,4.62772874,2510.8,2510.7,5.48459]
[1729723157992,4.62772874,2510.8,2510.7,5.60925193]
[1729723161094,4.62772874,2510.8,2510.7,5.48459]
[1729723161503,4.62772874,2510.8,2510.7,2.27679]
[1729723161700,4.62772874,2510.8,2510.7,5.48459]
[1729723165205,4.62772874,2510.8,2510.7,2.27679]
[1729723165405,4.62772874,2510.8,2510.7,5.48459]
[1729723169301,4.62772874,2510.8,2510.7,5.60925297]
[1729723169703,0.8134,2511.0,2510.7,5.21066297]
[1729723169900,0.8134,2511.0,2510.9,0.39856]
[1729723170411,0.8134,2511.0,2510.9,1.83856]
[1729723170812,0.8134,2511.0,2510.9,1.96321646]
[1729723172704,0.8134,2511.0,2510.9,1.96320876]
[1729723173309,0.8134,2511.0,2510.9,2.16264965]
[1729723174810,2.23712,2511.2,2510.9,1.76408965]
[1729723175003,0.79711,2511.2,2511.1,5.04633]
[1729723175209,0.79711,2511.2,2511.1,5.17097876]
[1729723176017,0.79711,2511.2,2511.1,1.96317876]
[1729723176314,0.79711,2511.2,2511.1,5.04633]
[1729723178622,0.8369,2511.4,2511.3,0.39849]
[1729723179617,1.23538,2511.4,2511.3,0.39849]
[1729723179819,2.2769,2511.4,2511.2,1.44]
[1729723180007,0.8369,2511.4,2511.3,0.39849]
[1729723180213,1.23538,2511.4,2511.3,0.39849]
[1729723183624,1.23538,2511.4,2511.3,3.60629]
[1729723184623,2.67538,2511.4,2511.3,3.60629]
[1729723185421,2.67538,2511.4,2511.3,0.39849]
[1729723185619,0.3985,2511.3,2511.2,0.3985]
[1729723185818,1.8385,2511.3,2511.2,3.2078]
[1729723190331,1.44,2511.3,2511.1,2.80151]
[1729723190532,0.39851,2511.2,2511.1,2.80151]
[1729723190735,0.39851,2511.2,2511.1,6.00931]
[1729723191233,0.39851,2511.2,2511.1,2.80151]
[1729723192334,0.39851,2511.2,2511.1,6.00931]
[1729723192529,0.39851,2511.2,2511.1,5.6108]
[1729723192734,0.39851,2511.2,2511.1,4.1708]
[1729723193036,0.82781,2511.2,2511.1,4.1708]
[1729723193235,0.82781,2511.2,2511.1,4.56933]
[1729723193438,0.82781,2511.2,2511.1,4.1708]
[1729723193829,0.82781,2511.2,2511.1,4.56933]
[1729723195625,0.82781,2511.2,2511.1,0.963]
[1729723195832,0.82781,2511.2,2511.1,4.56933]
[1729723196934,0.82781,2511.2,2511.1,1.36153]
[1729723197237,0.82781,2511.2,2511.1,4.1708]
[1729723198027,0.82781,2511.2,2511.1,4.56933]
[1729723198242,0.82781,2511.2,2511.1,4.1708]
[1729723198437,0.82781,2511.2,2511.1,4.56933]
[1729723200340,0.82781,2511.2,2511.1,4.1708]
[1729723200536,0.82781,2511.2,2511.1,4.56933]
[1729723204038,2.26781,2511.2,2511.1,3.2078]
[1729723204245,2.26781,2511.2,2510.9,0.962]
[1729723204246,10.20660109,2511.2,2510.9,0.962]
[1729723204445,0.39854,2511.0,2510.9,1.36056]
[1729723204641,0.39854,2511.0,2510.9,0.962]
[1729723204843,0.82834,2511.0,2510.9,2.402]
[1729723205043,0.82834,2511.0,2510.9,2.80056]
[1729723206542,0.82834,2511.0,2510.9,6.00836]
[1729723206943,0.82834,2511.0,2510.9,4.56836]
[1729723207145,0.82834,2511.0,2510.9,6.00836]
[1729723211848,0.82834,2511.0,2510.9,3.2078]
[1729723211849,2.26834,2511.0,2510.9,3.2078]
[1729723212048,6.2311692,2511.0,2510.7,1.83857]
[1729723212245,0.39857,2510.8,2510.7,2.24767]
[1729723212446,0.39857,2510.8,2510.7,2.37233284]
[1729723213158,0.39857,2510.8,2510.7,2.24767]
[1729723213750,0.39857,2510.8,2510.7,1.8491]
[1729723213948,0.39859,2510.7,2510.6,3.2078]
[1729723214154,2.63639,2510.7,2510.6,3.2078]
[1729723214351,6.98719558,2510.7,2510.6,3.2078]
[1729723215351,6.98719558,2510.7,2510.6,4.6478]
[1729723216651,6.98719558,2510.7,2510.6,1.44]
[1729723216847,6.98719558,2510.7,2510.6,4.6478]
[1729723217955,6.98719558,2510.7,2510.6,3.2078]
[1729723219159,5.54719558,2510.7,2510.6,4.6478]
[1729723219648,5.54719558,2510.7,2510.6,5.0464]
[1729723219649,4.75030558,2510.7,2510.6,5.0464]
[1729723220053,5.14889558,2510.7,2510.6,5.0464]
[1729723220451,4.75030558,2510.7,2510.6,5.0464]
[1729723221550,4.75030558,2510.7,2510.6,1.96326341]
[1729723222055,4.75030558,2510.7,2510.6,5.17106341]
[1729723222255,5.14889558,2510.7,2510.6,5.0464]
[1729723222848,5.14889558,2510.7,2510.6,1.8386]
[1729723223144,5.14889558,2510.7,2510.6,5.0464]
[1729723224054,5.14889558,2510.7,2510.6,3.2078]
[1729723224550,5.14889558,2510.7,2510.6,3.6064]
[1729723224750,5.14889558,2510.7,2510.6,5.0464]
[1729723227854,5.14889558,2510.7,2510.6,1.8386]
[1729723228354,5.14889558,2510.7,2510.6,5.0464]
[1729723228554,5.14889558,2510.7,2510.6,3.6064]
[1729723229750,5.14889558,2510.7,2510.6,3.2078]
[1729723230355,5.58019558,2510.7,2510.6,3.2078]
[1729723231054,5.58019558,2510.7,2510.6,3.6064]
[1729723231260,5.58019558,2510.7,2510.6,3.2078]
[1729723231854,5.58019558,2510.7,2510.6,3.6064]
[1729723233356,5.18160558,2510.7,2510.6,3.6064]
[1729723233755,4.35080558,2510.7,2510.6,3.6064]
[1729723234867,2.25717,2510.9,2510.8,0.39857]
[1729723235461,1.8586,2510.9,2510.8,0.39857]
[1729723235657,2.25716,2510.9,2510.8,0.39857]
[1729723236262,1.8586,2510.9,2510.8,0.39857]
[1729723236457,2.25716,2510.9,2510.8,0.39857]
[1729723237760,2.25716,2510.9,2510.8,3.60637]
[1729723241369,2.25716,2510.9,2510.8,3.2078]
[1729723242162,2.25716,2510.9,2510.8,3.60637]
[1729723242361,2.25716,2510.9,2510.8,3.2078]
[1729723242974,2.25716,2510.9,2510.8,3.60637]
[1729723245767,2.25716,2510.9,2510.8,0.39857]
[1729723245969,2.25716,2510.9,2510.8,3.60637]
[1729723246469,2.25716,2510.9,2510.8,3.73103187]
[1729723246769,2.25716,2510.9,2510.8,3.60637]
[1729723247068,2.25716,2510.9,2510.8,0.39857]
[1729723247265,1.8586,2510.9,2510.8,3.60637]
[1729723247567,0.39853,2511.1,2511.0,0.39853]
[1729723247764,1.83853,2511.1,2511.0,0.39853]
[1729723247968,1.44,2511.1,2510.8,5.0748]
[1729723248165,0.39854,2511.1,2511.0,0.39854]
[1729723249159,1.83854,2511.1,2511.0,0.39854]
[1729723249370,1.44,2511.1,2510.9,3.2078]
[1729723249575,1.83854,2511.0,2510.9,3.60634]
[1729723249760,1.83854,2511.0,2510.9,3.730999]
[1729723251865,1.83854,2511.0,2510.9,3.60634]
[1729723253375,1.44,2511.0,2510.8,3.6348]
[1729723253572,1.83856,2510.9,2510.8,4.03336]
[1729723253775,2.69496,2510.9,2510.8,4.03336]
[1729723254672,2.69496,2510.9,2510.8,0.82556]
[1729723254974,2.69496,2510.9,2510.8,4.03336]
[1729723256377,2.69496,2510.9,2510.8,0.82556]
[1729723256578,2.69496,2510.9,2510.8,4.03336]
[1729723256875,2.69496,2510.9,2510.8,3.6348]
[1729723257077,2.69496,2510.9,2510.8,4.03337]
[1729723258776,2.69496,2510.9,2510.8,3.2078]
[1729723258974,2.69496,2510.9,2510.8,3.33246388]
[1729723261981,2.69496,2510.9,2510.8,3.33246301]
[1729723265691,2.69496,2510.9,2510.8,3.2078]
[1729723266184,2.69496,2510.9,2510.8,3.33246301]
[1729723266881,2.69496,2510.9,2510.8,3.33246317]
[1729723267791,1.25496,2510.9,2510.8,3.73103317]
[1729723268098,1.25496,2510.9,2510.8,3.33246317]
[1729723269382,1.25496,2510.9,2510.8,3.33246197]
[1729723270181,0.4233,2511.2,2511.1,0.39853]
[1729723270393,0.39851,2511.2,2511.1,5.17096395]
[1729723270585,1.44,2511.3,2511.2,0.39851]
[1729723270586,1.8385,2511.3,2511.2,0.39851]
[1729723270784,1.8385,2511.3,2511.2,0.52316395]
[1729723273187,1.44,2511.3,2511.2,0.52316395]
[1729723273387,0.8309,2511.4,2511.2,1.44]
[1729723273593,4.20381,2511.9,2511.3,1.44]
[1729723273803,0.8228,2511.8,2511.7,1.83843]
[1729723274089,4.32304207,2511.8,2511.7,1.83843]
[1729723274298,1.44,2512.0,2511.8,0.39841]
[1729723274589,6.32591111,2511.9,2511.8,0.411]
[1729723274989,1.8384,2511.9,2511.8,0.411]
[1729723275493,0.39843,2511.7,2511.6,2.401]
[1729723276091,1.83843,2511.7,2511.6,0.961]
[1729723276291,1.83843,2511.7,2511.6,1.35945]
[1729723276292,1.44,2511.7,2511.6,1.35945]
[1729723276494,1.44,2511.7,2511.6,2.79945]
[1729723276997,1.44,2511.8,2511.6,2.401]
[1729723277301,1.83841,2511.9,2511.7,1.83842]
[1729723277487,1.44,2511.9,2511.8,3.6435]
[1729723277794,2.23539,2512.0,2511.8,5.48191]
[1729723278703,1.837,2512.0,2511.8,5.0835]
[1729723278902,1.8384,2511.9,2511.8,3.6435]
[1729723279404,1.8384,2511.9,2511.8,3.2078]
[1729723281009,1.44,2511.9,2511.5,3.6145]
[1729723281207,1.83843,2511.7,2511.6,0.96]
[1729723281606,0.39845,2511.6,2511.5,3.6145]
[1729723281802,0.39846,2511.5,2511.4,0.96]
[1729723282005,1.83846,2511.5,2511.4,0.96]
[1729723282201,1.83846,2511.5,2511.4,1.35848]
[1729723283515,1.83846,2511.5,2511.4,2.79848]
[1729723284807,1.83846,2511.5,2511.4,6.00628]
[1729723287809,1.83846,2511.5,2511.4,5.04628]
[1729723288015,1.83846,2511.5,2511.4,6.00628]
[1729723289418,1.83846,2511.5,2511.4,3.2078]
[1729723295523,1.83846,2511.5,2511.4,3.60628]
[1729723296025,0.39848,2511.4,2511.3,6.00628]
[1729723298115,0.39848,2511.4,2511.3,2.79848]
[1729723298315,0.39848,2511.4,2511.3,6.00628]
[1729723299028,1.83848,2511.5,2511.4,0.39848]